bitfinex/quotes_ETHUSD_20251117
["timestamp","ask_amount","ask_price","bid_price","bid_amount"]
[1763379147678,0.4593,3216.0,3215.9,4.24329022]
[1763379148202,0.489,3216.3,3215.9,1.1337408]
[1763379148579,0.1924,3216.5,3216.0,0.405504]
[1763379148781,0.4666,3216.4,3216.0,0.405504]
[1763379148977,0.458,3216.1,3216.0,0.405504]
[1763379149202,0.002,3216.9,3216.0,1.5392448]
[1763379149396,0.4686,3216.9,3216.0,1.9949448]
[1763379150683,0.4686,3216.9,3216.1,3.10935605]
[1763379151096,0.4686,3216.9,3216.0,4.64865626]
[1763379152168,0.4686,3216.9,3216.0,4.64524626]
[1763379152607,0.4686,3216.9,3216.1,3.3026431]
[1763379152780,0.4686,3216.9,3216.2,1.1337408]
[1763379154311,0.458,3216.3,3216.0,0.82100899]
[1763379154531,0.0548,3216.2,3216.1,0.405504]
[1763379154808,0.0548,3216.2,3216.1,1.5392448]
[1763379155574,0.5214,3216.2,3215.8,0.001]
[1763379155779,0.4485,3215.9,3215.8,0.001]
[1763379156301,0.9151,3215.9,3215.8,0.001]
[1763379156920,0.4485,3215.9,3215.8,0.001]
[1763379157096,0.2527,3215.9,3215.8,0.001]
[1763379157483,0.7193,3215.9,3215.8,0.001]
[1763379158521,0.1958,3216.1,3215.8,0.001]
[1763379158899,0.1958,3216.3,3215.8,0.406504]
[1763379159298,0.4666,3216.2,3215.8,0.406504]
[1763379159514,0.458,3215.9,3215.8,0.406504]
[1763379160040,0.458,3215.9,3215.8,0.001]
[1763379160233,0.9246,3215.9,3215.8,0.001]
[1763379160420,0.458,3215.9,3215.8,0.001]
[1763379161135,0.4666,3216.2,3215.8,1.1347408]
[1763379161437,0.4666,3216.2,3215.9,0.405504]
[1763379161902,0.458,3216.0,3215.9,0.405504]
[1763379162303,0.1958,3216.3,3215.9,0.4557]
[1763379162503,0.6624,3216.3,3215.9,0.4557]
[1763379162930,0.4666,3216.2,3215.9,0.405504]
[1763379163338,0.458,3216.0,3215.9,0.405504]
[1763379163551,0.9246,3216.0,3215.8,0.001]
[1763379163729,0.0548,3215.9,3215.8,0.001]
[1763379164052,0.5214,3215.9,3215.8,0.001]
[1763379164408,0.0548,3215.9,3215.8,0.001]
[1763379164603,0.6624,3216.3,3215.9,0.405504]
[1763379164938,0.4666,3216.2,3215.9,0.405504]
[1763379165455,0.458,3216.0,3215.9,0.405504]
[1763379165937,0.458,3216.0,3215.8,0.001]
[1763379166353,0.4666,3216.2,3215.9,1.5894408]
[1763379166523,0.1958,3216.3,3215.9,1.5894408]
[1763379166722,0.6624,3216.3,3215.9,1.5894408]
[1763379167256,0.4666,3216.6,3215.9,4.69894296]
[1763379167566,0.4686,3216.9,3216.2,0.4557]
[1763379167724,0.29161434,3216.8,3216.2,0.4557]
[1763379168071,0.4686,3216.9,3216.2,0.4557]
[1763379168369,0.75821635,3216.8,3216.2,0.4557]
[1763379168570,0.4666,3216.8,3216.2,0.4557]
[1763379169256,0.4666,3216.8,3216.2,3.56492992]
[1763379169456,0.4666,3216.8,3216.3,1.1337408]
[1763379169767,0.4666,3216.8,3216.2,0.4557]
[1763379170066,0.4658,3216.8,3216.3,1.1337408]
[1763379170422,0.4658,3216.8,3216.2,1.5894408]
[1763379170652,0.4658,3216.8,3216.2,1.0166972]
[1763379170819,0.4658,3216.8,3216.2,1.5392448]
[1763379171560,0.4658,3216.8,3216.2,4.64843614]
[1763379171962,0.4658,3216.8,3216.2,0.405504]
[1763379173259,0.002,3216.9,3216.3,1.1337408]
[1763379173452,0.29162144,3216.8,3216.3,1.1337408]
[1763379173766,0.4686,3216.9,3216.3,1.1337408]
[1763379174057,0.29162139,3216.8,3216.3,3.10913744]
[1763379174260,0.002,3216.9,3216.4,0.46483822]
[1763379174460,0.29160932,3216.8,3216.4,0.46483822]
[1763379174677,0.4686,3216.9,3216.4,0.46483822]
[1763379174842,0.2916093,3216.8,3216.3,1.1337408]
[1763379175040,0.4686,3216.9,3216.3,1.1337408]
[1763379175283,0.29160929,3216.8,3216.3,1.1337408]
[1763379175567,0.4686,3216.9,3216.3,1.1337408]
[1763379175769,0.2916032,3216.8,3216.3,1.1337408]
[1763379176076,0.4686,3216.9,3216.3,1.1337408]
[1763379176259,0.29160279,3216.8,3216.3,1.1337408]
[1763379176432,0.4686,3216.9,3216.3,1.1337408]
[1763379176633,0.4666,3216.8,3216.3,1.1337408]
[1763379176831,0.002,3216.9,3216.3,5.49674246]
[1763379177186,0.002,3216.9,3216.8,0.4557]
[1763379179955,0.002,3216.9,3216.6,3.10884678]
[1763379180261,0.002,3216.9,3216.8,0.4675]
[1763379180480,0.005,3217.9,3216.9,1.5392448]
[1763379180663,0.005,3217.9,3217.6,1.5392448]
[1763379180965,0.005,3217.9,3217.3,1.1337408]
[1763379180966,0.4632,3217.8,3217.3,1.1337408]
[1763379181133,0.4777,3217.6,3217.3,1.1337408]
[1763379181562,0.2047,3217.9,3217.3,1.82832312]
[1763379181924,0.1997,3219.8,3218.0,0.05]
[1763379182135,0.4632,3219.2,3218.8,1.1337408]
[1763379182417,0.6679,3218.9,3218.8,1.1337408]
[1763379182703,1.1418,3218.9,3218.3,1.5392448]
[1763379182903,1.1418,3218.9,3218.6,0.4632]
[1763379183403,0.005,3218.9,3218.8,0.4675]
[1763379183697,0.005,3218.9,3218.8,6.27958244]
[1763379183898,0.005,3218.9,3218.8,6.77578244]
[1763379184089,0.005,3218.9,3218.8,9.88253029]
[1763379184500,0.005,3218.9,3218.8,6.68508644]
[1763379184674,0.4632,3219.4,3218.9,5.400504]
[1763379184878,0.4632,3219.4,3218.9,4.995]
[1763379185065,0.4739,3219.0,3218.9,4.995]
[1763379185877,0.4632,3219.5,3218.9,4.995]
[1763379187301,0.4632,3219.5,3219.0,0.405504]
[1763379190489,0.4739,3219.1,3218.9,4.996]
[1763379190829,0.0047,3219.0,3218.9,4.996]
[1763379191516,0.4632,3219.3,3218.9,5.4635]
[1763379191714,0.4632,3219.3,3218.9,5.49456651]
[1763379192024,0.4632,3219.3,3219.2,0.4675]
[1763379192229,0.002,3219.4,3219.3,0.405504]
[1763379192431,0.002,3219.4,3219.3,0.873004]
[1763379192796,0.002,3219.4,3219.3,4.50653198]
[1763379192995,0.002,3219.4,3219.3,4.47546933]
[1763379193191,0.002,3219.4,3219.3,6.3348551]
[1763379193192,0.0012,3219.4,3219.3,6.3348551]
[1763379193435,0.0012,3219.4,3219.3,7.23716374]
[1763379195049,0.15866565,3220.0,3219.9,0.873004]
[1763379195343,0.1997,3222.3,3219.9,0.873004]
[1763379195344,0.4632,3222.1,3220.6,0.405504]
[1763379195549,0.4673,3221.7,3220.6,0.405504]
[1763379195842,0.4673,3221.7,3220.8,0.405504]
[1763379195996,0.4539,3220.6,3220.0,0.16227441]
[1763379196196,0.005,3220.9,3220.2,7.24222653]
[1763379196394,0.4673,3220.8,3220.0,0.16227441]
[1763379197110,0.4673,3220.8,3220.1,1.57029973]
[1763379197513,0.005,3220.9,3220.2,0.405504]
[1763379197945,0.4723,3220.9,3220.1,0.405504]
[1763379198320,0.005,3220.9,3220.2,0.03105397]
[1763379199050,0.005,3220.9,3220.5,0.405504]
[1763379199346,0.005,3220.9,3220.5,0.43655507]
[1763379199510,0.005,3220.9,3220.5,0.31250723]
[1763379200452,0.005,3220.9,3220.5,0.28145616]
[1763379200812,0.005,3220.9,3220.6,3.10501148]
[1763379201012,0.005,3220.9,3220.7,1.1337408]
[1763379201626,0.005,3220.9,3220.8,0.405504]
[1763379201847,0.005,3220.9,3220.6,0.405504]
[1763379203052,0.005,3220.9,3220.8,0.405504]
[1763379204162,0.005,3220.9,3220.8,0.90097192]
[1763379204666,0.005,3220.9,3220.8,0.86992374]
[1763379204867,0.005,3220.9,3220.8,0.90097192]
[1763379205058,0.005,3220.9,3220.8,0.86992374]
[1763379205265,0.005,3220.9,3220.8,5.10848321]
[1763379205765,0.005,3220.9,3220.8,4.64406347]
[1763379206290,0.1997,3223.0,3221.9,0.05]
[1763379206468,0.4673,3222.9,3221.8,0.405504]
[1763379206775,0.28757529,3222.8,3221.8,0.405504]
[1763379206976,0.4673,3222.9,3221.8,0.405504]
[1763379207135,0.6369,3221.9,3221.6,0.4673]
[1763379207334,0.6369,3221.9,3221.7,0.405504]
[1763379207568,0.6369,3221.9,3221.1,1.1337408]
[1763379207870,0.6369,3221.9,3221.2,0.405504]
[1763379208378,0.1887,3221.9,3221.7,0.405504]
[1763379208559,0.1887,3221.9,3221.2,0.405504]
[1763379208760,0.4599,3221.6,3221.2,0.405504]
[1763379209256,0.4599,3221.6,3221.1,0.405504]
[1763379209456,0.1907,3221.9,3221.3,0.405504]
[1763379210047,0.1907,3221.9,3221.2,3.10442034]
[1763379210235,0.4895,3221.8,3221.3,0.405504]
[1763379211568,0.4895,3221.8,3221.2,4.23811661]
[1763379211877,0.28834865,3221.7,3221.2,1.1337408]
[1763379212081,0.4895,3221.8,3221.2,1.1337408]
[1763379212238,0.28835361,3221.7,3221.3,0.405504]
[1763379212443,0.28835361,3221.6,3221.3,0.405504]
[1763379212652,0.4895,3221.7,3221.3,0.405504]
[1763379212852,0.4599,3221.4,3220.8,1.1337408]
[1763379213054,0.4599,3221.3,3220.7,1.1337408]
[1763379213266,0.4599,3221.3,3220.9,0.405504]
[1763379213483,0.4599,3221.3,3221.0,0.03104625]
[1763379213944,0.4599,3221.3,3221.1,1.1337408]
[1763379214492,0.4895,3221.7,3220.5,0.36055654]
[1763379214493,1.23793399,3221.2,3220.5,0.406504]
[1763379214654,0.6486,3220.6,3220.5,0.001]
[1763379214997,0.93719254,3220.6,3220.5,0.001]
[1763379215142,1.42669254,3220.6,3220.5,0.001]
[1763379216145,1.42589254,3220.6,3220.5,0.001]
[1763379218180,1.42589254,3220.6,3219.1,0.005]
[1763379218367,0.4599,3219.2,3219.1,0.005]
[1763379218676,0.74849254,3219.2,3219.1,0.005]
[1763379218887,1.23799254,3219.2,3219.1,0.005]
[1763379220188,1.23863669,3219.2,3219.1,0.005]
[1763379221728,0.83874787,3221.2,3220.5,0.461]
[1763379221899,0.1907,3221.9,3221.1,1.5392448]
[1763379222099,0.1907,3221.9,3220.5,0.2037]
[1763379222100,0.4895,3221.8,3220.5,0.1537]
[1763379222347,0.4599,3220.9,3220.6,0.405504]
[1763379222523,0.4599,3220.9,3220.3,0.405504]
[1763379222841,0.6802,3221.9,3220.9,0.405504]
[1763379223231,0.002,3221.9,3220.9,1.1337408]
[1763379223430,0.002,3221.9,3221.6,1.1337408]
[1763379223431,0.1887,3221.8,3221.6,1.1337408]
[1763379223739,0.9494,3221.7,3220.8,0.405504]
[1763379224048,0.9494,3221.7,3221.0,1.5392448]
[1763379224049,0.4599,3221.6,3221.0,1.5392448]
[1763379224211,0.4599,3221.6,3221.0,2.13728865]
[1763379224613,0.1887,3221.8,3221.0,2.13728865]
[1763379224799,0.1887,3221.8,3221.0,2.1683349]
[1763379225330,0.1887,3221.8,3221.0,2.13728865]
[1763379225513,0.002,3221.9,3221.6,7.24222653]
[1763379225714,0.002,3221.9,3221.8,0.542904]
[1763379225901,0.002,3221.9,3221.8,4.78049978]
[1763379226105,0.002,3221.9,3221.8,4.91789978]
[1763379226345,0.002,3221.9,3221.8,12.75817016]
[1763379226549,0.4895,3223.4,3221.9,1.5392448]
[1763379226715,0.1887,3223.3,3222.6,1.5392448]
[1763379227215,0.5,3223.5,3222.7,0.1374]
[1763379227415,0.5,3223.5,3222.8,0.405504]
[1763379227658,0.5,3223.5,3223.1,0.405504]
[1763379228167,0.5,3223.5,3223.3,0.405504]
[1763379228449,0.5,3223.5,3223.4,0.542904]
[1763379229417,0.5,3223.5,3223.4,8.91887133]
[1763379229608,0.5,3223.5,3223.4,1.6766448]
[1763379230010,0.5,3223.5,3223.4,1.5392448]
[1763379230239,0.5,3223.5,3222.9,0.1374]
[1763379230240,0.5,3223.5,3222.9,1.5392448]
[1763379230628,0.5,3223.5,3222.9,1.57027275]
[1763379230964,0.5,3223.5,3223.4,0.1374]
[1763379231106,0.5,3223.5,3222.9,2.31426113]
[1763379231440,0.5,3223.5,3222.9,1.5392448]
[1763379232127,0.4895,3223.4,3222.7,1.6337408]
[1763379232332,0.4895,3223.4,3222.6,1.16477164]
[1763379232520,0.4895,3223.4,3222.6,1.84297164]
[1763379233019,0.4895,3223.4,3222.7,0.405504]
[1763379233218,0.4895,3223.4,3222.9,1.1337408]
[1763379233629,0.4395,3223.4,3222.9,1.1337408]
[1763379234002,0.5,3223.5,3223.0,3.10269934]
[1763379234234,0.5,3223.5,3223.1,0.405504]
[1763379235130,0.5,3223.5,3223.1,1.17996835]
[1763379235331,0.5,3223.5,3223.1,0.405504]
[1763379235532,0.4895,3223.4,3223.0,0.405504]
[1763379235932,0.4895,3223.4,3223.0,0.5]
[1763379236133,0.4895,3223.4,3223.0,3.10263508]
[1763379236330,0.5,3223.5,3223.0,3.10263508]
[1763379236567,0.5,3223.5,3223.1,0.03102603]
[1763379237271,0.5,3223.5,3222.9,4.23649977]
[1763379237272,0.9774,3223.5,3222.9,4.23649977]
[1763379237448,0.9774,3223.5,3222.9,4.23653416]
[1763379237649,0.4774,3223.4,3222.9,4.23653416]
[1763379238673,0.4774,3223.4,3222.9,4.23651287]
[1763379239101,0.4774,3223.4,3222.0,7.75514286]
[1763379239102,0.4518,3223.0,3222.0,7.75514286]
[1763379239246,0.5,3223.5,3222.0,7.75514286]
[1763379239247,0.4774,3222.7,3222.0,7.75514286]
[1763379240064,0.4774,3222.7,3222.0,10.85878799]
[1763379240878,0.4774,3222.7,3222.0,7.75514286]
[1763379241082,0.4774,3222.7,3222.0,8.88888366]
[1763379242561,0.4518,3222.1,3221.5,7.75514286]
[1763379242761,0.4774,3222.7,3221.6,1.1337408]
[1763379242963,0.1743,3222.8,3222.0,7.75514286]
[1763379243166,0.1743,3222.8,3222.2,0.405504]
[1763379243536,0.1743,3222.8,3222.1,0.1382]
[1763379243741,0.6517,3222.8,3222.1,0.16923565]
[1763379243961,0.6517,3222.8,3222.1,0.1382]
[1763379244364,0.1743,3222.8,3222.2,6.61244334]
[1763379244568,0.4774,3223.2,3222.4,0.405504]
[1763379244739,0.4774,3223.2,3222.3,0.405504]
[1763379244938,0.4774,3223.2,3222.2,3.10346967]
[1763379245186,0.4774,3223.2,3222.1,4.23726731]
[1763379245346,0.4774,3223.2,3222.2,0.405504]
[1763379246189,0.4774,3223.2,3222.1,1.1337408]
[1763379246190,0.1894,3222.3,3222.1,1.1337408]
[1763379246343,0.4518,3222.2,3221.5,7.75514286]
[1763379246659,0.4774,3222.2,3221.9,0.001]
[1763379246859,0.4518,3222.0,3221.9,0.001]
[1763379247392,0.9292,3222.0,3221.9,0.001]
[1763379253746,0.1894,3222.3,3221.9,0.001]
[1763379254048,0.1894,3222.6,3222.1,7.75514286]
[1763379254387,0.1894,3222.8,3222.2,0.1382]
[1763379254548,0.1894,3222.8,3222.1,7.75514286]
[1763379254748,0.1894,3222.8,3221.9,3.10466896]
[1763379254749,0.4518,3222.2,3221.9,0.001]
[1763379254949,0.4774,3222.7,3221.9,0.001]
[1763379254950,0.4774,3222.7,3221.9,3.10474575]
[1763379255165,0.1894,3222.8,3222.1,7.75514286]
[1763379255394,0.4774,3223.0,3222.1,7.75514286]
[1763379255395,0.4774,3223.0,3222.2,0.03103469]
[1763379255571,0.4774,3223.4,3222.2,0.543704]
[1763379256719,0.4774,3223.4,3222.3,3.10337336]
[1763379257191,0.6596,3222.4,3222.1,7.75514286]
[1763379257695,0.6459,3222.6,3222.1,10.85868929]
[1763379257885,0.1838,3222.6,3222.1,7.75514286]
[1763379258083,0.4621,3222.5,3222.1,7.75514286]
[1763379258722,0.1838,3222.6,3222.1,10.99688447]
[1763379259019,0.1838,3222.6,3222.1,7.89334286]
[1763379259195,0.4758,3222.2,3222.0,1.1337408]
[1763379259400,0.4758,3222.2,3221.9,3.10474756]
[1763379259595,0.1838,3222.8,3222.1,0.3264]
[1763379260211,0.6459,3222.8,3222.1,0.3264]
[1763379260417,0.6459,3222.8,3222.1,0.1382]
[1763379261127,0.4621,3222.7,3222.0,4.23732645]
[1763379262404,0.4613,3222.7,3222.0,4.23732645]
[1763379262624,0.4758,3222.1,3221.9,0.001]
[1763379262799,0.4613,3222.7,3221.9,0.001]
[1763379263004,0.1838,3222.8,3222.0,7.75514286]
[1763379263926,0.4758,3222.1,3222.0,7.75514286]
[1763379264128,0.4758,3222.1,3221.9,0.001]
[1763379264639,0.6459,3222.8,3222.0,7.94414286]
[1763379265233,0.6459,3222.8,3222.0,10.85974626]
[1763379265234,0.1838,3222.8,3222.0,10.85974626]
[1763379265543,0.4621,3222.7,3222.0,7.75614286]
[1763379269100,0.4517,3222.1,3222.0,7.75614286]
[1763379269435,0.4621,3222.7,3222.0,7.75614286]
[1763379270004,0.4517,3222.1,3222.0,7.75614286]
[1763379270200,0.4621,3222.7,3222.0,7.75614286]
[1763379271538,0.4621,3222.7,3222.0,0.001]
[1763379276253,0.1864,3222.9,3222.2,7.75514286]
[1763379276414,0.83874787,3225.0,3223.4,2.06]
[1763379276614,0.09999999,3226.0,3225.5,0.239]
[1763379276615,0.83722629,3226.0,3225.5,0.239]
[1763379276851,0.09083496,3226.7,3225.9,7.94414286]
[1763379277048,0.09083496,3226.7,3226.6,7.94414286]
[1763379277257,0.01555189,3226.7,3226.6,9.48338766]
[1763379277416,0.01555189,3226.7,3226.6,1.3227408]
[1763379277608,0.01555189,3226.7,3226.6,4.23297838]
[1763379277808,0.01555189,3226.7,3226.6,1.5392448]
[1763379278010,0.01555189,3226.7,3226.5,7.75514286]
[1763379278011,0.92735189,3226.7,3226.5,2.18947155]
[1763379278215,0.92735189,3226.7,3225.8,2.18947155]
[1763379278216,0.4517,3226.6,3225.8,2.18947155]
[1763379278411,0.4517,3226.2,3225.6,2.18947155]
[1763379278615,0.4517,3226.2,3225.5,2.18947155]
[1763379278861,0.01555189,3226.7,3225.6,7.75514286]
[1763379279151,0.4601,3226.6,3226.0,2.18947155]
[1763379279363,0.4601,3226.6,3225.7,0.405504]
[1763379279364,0.4601,3226.6,3225.8,2.18947155]
[1763379279743,0.4601,3226.6,3225.8,5.28945367]
[1763379279953,0.4601,3226.6,3225.8,3.09998212]
[1763379280169,0.01555189,3226.7,3225.7,2.62597657]
[1763379280477,0.4601,3226.7,3225.7,1.1337408]
[1763379280669,0.4601,3226.7,3225.6,1.1337408]
[1763379280830,0.4601,3226.7,3225.7,0.405504]
[1763379281032,0.4601,3226.7,3225.6,0.405504]
[1763379281237,0.1864,3226.9,3225.5,1.1837408]
[1763379281238,0.1864,3226.9,3225.8,7.75514286]
[1763379281437,0.1864,3226.9,3225.4,0.05]
[1763379281438,0.4601,3226.6,3225.4,0.05]
[1763379281734,0.4601,3226.6,3224.6,2.18947155]
[1763379281735,0.1864,3225.6,3224.6,2.18947155]
[1763379282148,0.4601,3225.5,3224.5,2.18947155]
[1763379282473,0.1864,3224.5,3224.0,5.43020095]
[1763379282673,0.4601,3225.5,3224.0,0.139]
[1763379282877,0.1864,3225.6,3224.0,0.139]
[1763379282878,0.1864,3224.5,3224.0,0.139]
[1763379283266,0.6465,3224.5,3223.6,2.18947155]
[1763379283455,0.6465,3224.5,3223.6,1.00836144]
[1763379283785,0.1864,3224.7,3223.9,7.75514286]
[1763379284275,0.1864,3224.7,3224.1,1.63524268]
[1763379284776,0.1864,3224.7,3224.2,1.63524268]
[1763379285073,0.1864,3224.7,3224.3,1.63524268]
[1763379285491,0.4601,3225.5,3224.4,8.16064686]
[1763379285773,0.4601,3225.5,3224.8,1.63524268]
[1763379286376,0.1864,3225.6,3225.0,1.63524268]
[1763379286539,0.6465,3225.6,3225.0,1.63524268]
[1763379287605,0.4601,3225.5,3225.0,1.63524268]
[1763379287801,0.4517,3225.1,3224.9,1.63524268]
[1763379288009,0.4517,3225.1,3224.6,1.63524268]
[1763379288207,0.4601,3225.0,3224.6,1.63524268]
[1763379288369,0.4601,3225.0,3224.2,1.1337408]
[1763379288370,0.6381,3224.7,3224.5,1.63524268]
[1763379288770,0.49221,3224.7,3224.5,1.63524268]
[1763379289181,0.95231,3224.7,3224.5,1.63524268]
[1763379290490,0.4517,3224.6,3224.5,1.63524268]
[1763379290691,0.9118,3224.6,3224.4,1.63524268]
[1763379291373,0.1864,3224.7,3224.4,1.63524268]
[1763379291578,0.1864,3224.7,3224.5,1.63524268]
[1763379293515,0.1864,3224.7,3224.6,1.63524268]
[1763379294212,1.0982,3224.7,3224.5,1.63524268]
[1763379294450,1.0982,3224.7,3224.6,1.63524268]
[1763379295015,1.0982,3224.7,3224.1,1.63524268]
[1763379295228,0.1864,3224.7,3224.0,1.63524268]
[1763379295442,0.1864,3224.7,3224.0,7.21618068]
[1763379295748,0.6465,3224.7,3223.8,0.94056522]
[1763379296049,0.6465,3224.7,3223.7,7.21618068]
[1763379296348,0.6465,3224.7,3224.2,7.21618068]
[1763379296660,0.1864,3227.3,3225.0,0.05]
[1763379296862,0.4601,3226.6,3225.8,7.21618068]
[1763379297161,0.1864,3225.9,3225.8,7.21618068]
[1763379297683,0.1864,3225.9,3225.5,7.21618068]
[1763379298350,0.6386,3225.9,3225.3,2.18947155]
[1763379298952,0.6386,3225.9,3225.2,7.21618068]
[1763379299155,0.4522,3225.8,3225.2,7.21618068]
[1763379299326,0.4822,3225.3,3225.0,2.18947155]
[1763379299531,0.4822,3225.3,3224.7,9.40565223]
[1763379299723,0.4822,3225.3,3224.7,10.05709434]
[1763379299954,0.4822,3225.3,3224.7,13.1581443]
[1763379300140,0.4822,3225.3,3224.7,10.05709434]
[1763379300449,0.9344,3225.3,3224.7,10.05709434]
[1763379301025,0.9344,3225.3,3224.7,9.40565223]
[1763379301227,0.4822,3225.3,3224.7,9.40565223]
[1763379301454,0.1864,3225.9,3224.6,2.18947155]
[1763379301455,0.5709,3224.8,3224.6,2.18947155]
[1763379301670,0.1813,3224.8,3224.5,0.002]
[1763379301893,0.4522,3224.7,3224.5,0.002]
[1763379302172,0.4822,3224.6,3224.5,0.002]
[1763379302548,0.9344,3224.6,3224.5,0.002]
[1763379308457,0.9336,3224.6,3224.5,0.002]
[1763379319113,0.9336,3224.6,3222.9,2.73640628]
[1763379319409,0.4522,3224.5,3222.9,0.27364063]
[1763379319573,0.4522,3224.5,3222.7,0.3365]
[1763379320711,0.4522,3224.5,3224.1,0.002]
[1763379320865,0.4948,3224.2,3224.1,0.002]
[1763379321313,0.9608,3224.2,3224.1,0.002]
[1763379325912,0.9608,3224.2,3222.2,1.4702408]
[1763379326117,0.9608,3224.2,3222.3,0.86864215]
[1763379326118,0.466,3224.1,3222.3,0.86864215]
[1763379326614,0.466,3224.1,3222.3,1.20514215]
[1763379327919,0.466,3224.1,3222.3,0.86864215]
[1763379330234,0.466,3224.1,3222.0,0.001]
[1763379330235,0.405504,3224.0,3222.0,0.001]
[1763379330596,0.405504,3223.8,3222.0,0.001]
[1763379331123,0.4896,3223.7,3222.0,0.001]
[1763379331491,0.4888,3223.7,3222.0,0.3383]
[1763379332493,0.06902161,3223.7,3222.0,0.3383]
[1763379332690,0.1917,3223.9,3222.0,0.3383]
[1763379332893,0.1917,3223.9,3222.1,0.34430488]
[1763379333316,0.1917,3223.9,3222.0,0.3383]
[1763379334587,0.475,3223.8,3222.0,0.3383]
[1763379335886,0.475,3223.8,3222.0,3.3333]
[1763379336088,0.475,3223.8,3222.1,0.4578]
[1763379336323,0.475,3223.8,3222.2,7.21618068]
[1763379336526,0.475,3223.8,3222.3,0.76739807]
[1763379336825,0.475,3223.8,3222.4,0.4578]
[1763379339087,0.475,3223.8,3222.1,0.4578]
[1763379340026,0.475,3223.8,3222.2,7.21618068]
[1763379340342,0.475,3223.8,3222.3,0.4578]
[1763379340645,0.475,3223.8,3222.4,0.76739807]
[1763379340841,0.475,3223.8,3222.4,0.4578]
[1763379342314,0.475,3223.8,3222.0,2.996]
[1763379342635,0.475,3223.8,3222.1,0.4578]
[1763379346111,0.475,3223.8,3222.1,3.56131818]
[1763379346312,0.475,3223.8,3222.2,0.96609467]
[1763379346513,0.475,3223.8,3222.3,0.4578]
[1763379347157,0.475,3223.8,3222.0,3.4538]
[1763379347543,0.475,3223.8,3222.0,2.996]
[1763379349053,0.475,3223.8,3222.0,3.4538]
[1763379349921,0.405504,3223.7,3222.0,3.4538]
[1763379350557,0.4896,3223.6,3222.0,3.4538]
[1763379351468,0.5568,3222.1,3222.0,2.996]
[1763379352074,1.0464,3222.1,3222.0,2.996]
[1763379354431,1.0456,3222.1,3222.0,2.996]
[1763379357672,2.5848448,3222.1,3222.0,2.996]
[1763379357856,3.9301519,3222.1,3222.0,2.996]
[1763379358205,1.068604,3222.0,3221.6,0.002]
[1763379358361,0.4712,3221.7,3221.6,0.002]
[1763379358852,0.949,3221.7,3221.6,0.002]
[1763379361396,1.354504,3221.7,3221.6,0.002]
[1763379361532,0.949,3221.7,3221.6,0.002]
[1763379361737,0.0782,3222.1,3221.6,0.002]
[1763379361976,0.4712,3221.7,3221.6,0.002]
[1763379363201,0.949,3221.7,3221.6,0.002]
[1763379365364,1.15727408,3221.7,3221.6,0.002]
[1763379366462,0.20827408,3221.7,3221.6,0.002]
[1763379366665,0.0782,3222.1,3221.6,0.4628]
[1763379366860,0.1998,3222.4,3221.6,0.9553]
[1763379367582,0.6776,3222.4,3221.6,0.4628]
[1763379368460,0.4778,3222.3,3221.6,0.002]
[1763379368662,0.1998,3222.4,3221.6,0.002]
[1763379368888,6.33,3222.8,3221.6,0.002]
[1763379368889,0.1998,3222.5,3221.7,0.4925]
[1763379369631,0.1998,3222.5,3221.6,0.002]
[1763379370298,0.6776,3222.5,3221.6,0.002]
[1763379371208,0.1998,3222.5,3221.6,0.002]
[1763379371415,0.4778,3222.4,3221.6,0.002]
[1763379372101,0.1998,3222.5,3221.6,0.4945]
[1763379372299,0.44423408,3222.5,3221.6,0.4945]
[1763379372696,0.4778,3222.4,3221.6,0.4945]
[1763379374748,0.2897528,3222.3,3221.6,0.002]
[1763379375241,0.2898761,3222.3,3221.6,0.4945]
[1763379375451,0.2898761,3222.4,3221.6,0.4945]
[1763379376638,0.7676761,3222.4,3221.6,0.002]
[1763379376934,0.2898761,3222.3,3221.6,0.002]
[1763379377298,0.24443408,3222.5,3222.2,0.645]
[1763379377604,0.24363408,3222.5,3222.4,0.4608]
[1763379377806,0.5337979,3222.5,3222.4,0.4608]
[1763379378034,0.6776,3223.0,3222.2,0.1842]
[1763379378330,0.002,3222.4,3221.6,0.002]
[1763379378517,0.002,3222.4,3221.6,0.4945]
[1763379378718,0.002,3222.4,3222.3,0.4608]
[1763379379305,0.002,3222.4,3221.7,0.4925]
[1763379380232,0.29014077,3222.3,3221.7,0.4925]
[1763379380615,0.002,3222.4,3221.7,0.4925]
[1763379381335,0.29063311,3222.3,3221.7,0.4925]
[1763379381532,0.002,3222.4,3221.7,0.4925]
[1763379381734,0.29063312,3222.3,3221.7,0.4925]
[1763379382044,0.29063035,3222.3,3222.2,0.4514]
[1763379382226,0.002,3222.4,3222.2,0.4514]
[1763379383135,0.4842,3222.3,3221.6,0.002]
[1763379383438,0.002,3222.4,3221.6,0.5003]
[1763379383623,0.29060397,3222.3,3221.6,0.5003]
[1763379384012,0.29060397,3222.3,3222.2,0.4514]
[1763379384236,0.4712,3222.3,3221.6,0.002]
[1763379384436,0.002,3222.4,3221.6,0.002]
[1763379384738,0.76377779,3222.4,3221.6,0.002]
[1763379384937,0.4732,3222.4,3221.6,0.002]
[1763379385107,0.4732,3222.4,3221.6,0.5003]
[1763379385735,0.002,3222.4,3221.6,0.5003]
[1763379386440,0.29256432,3222.4,3221.6,0.5003]
[1763379386637,0.002,3222.4,3221.6,0.5003]
[1763379386825,0.29256545,3222.4,3222.3,0.6315]
[1763379387012,0.002,3222.4,3221.6,0.5003]
[1763379387215,0.29056545,3222.3,3221.6,0.5003]
[1763379387837,0.002,3222.4,3221.6,0.5003]
[1763379388148,0.29256545,3222.4,3221.6,0.5003]